[Event "Early-Titled-Tuesday-Blitz-March-26-2024"]
[Site "Chess.com"]
[Date "2024.03.26"]
[Round "3"]
[White "Chess_Gainz"]
[Black "C_K_G"]
[Result "1/2-1/2"]
[WhiteElo "2553"]
[BlackElo "2244"]
[TimeControl "180+1"]
[EndTime "8:29:36 PDT"]
[Termination "Game drawn - insufficient material"]

1. e4 {[%clk 0:03:00.9]} 1... c5 {[%clk 0:02:51.7]} 2. Nf3 {[%clk 0:03:01.2]}
2... d6 {[%clk 0:02:51]} 3. d4 {[%clk 0:03:01.5]} 3... cxd4 {[%clk 0:02:51.8]}
4. Nxd4 {[%clk 0:03:02.1]} 4... Nf6 {[%clk 0:02:52.3]} 5. Nc3 {[%clk 0:03:02.7]}
5... a6 {[%clk 0:02:52.7]} 6. h3 {[%clk 0:03:03.3]} 6... e5 {[%clk 0:02:52.8]}
7. Nde2 {[%clk 0:03:03.9]} 7... Be6 {[%clk 0:02:52.9]} 8. g4 {[%clk 0:03:04.2]}
8... Nbd7 {[%clk 0:02:52.2]} 9. Bg2 {[%clk 0:03:02.8]} 9... Be7 {[%clk 0:02:51]}
10. Ng3 {[%clk 0:02:59.5]} 10... O-O {[%clk 0:02:50.5]} 11. g5 {[%clk
0:02:59.7]} 11... Ne8 {[%clk 0:02:49.5]} 12. h4 {[%clk 0:02:57]} 12... b5 {[%clk
0:02:47.6]} 13. Nd5 {[%clk 0:02:55.6]} 13... Nb6 {[%clk 0:02:42.3]} 14. O-O
{[%clk 0:02:24.5]} 14... Bxd5 {[%clk 0:02:35.1]} 15. exd5 {[%clk 0:02:24.5]}
15... f5 {[%clk 0:02:34.1]} 16. gxf6 {[%clk 0:02:18.6]} 16... Nxf6 {[%clk
0:02:32.7]} 17. Nf5 {[%clk 0:02:03.5]} 17... Rf7 {[%clk 0:01:54]} 18. Nxe7+
{[%clk 0:02:01.7]} 18... Qxe7 {[%clk 0:01:53.3]} 19. Bg5 {[%clk 0:01:56.8]}
19... h6 {[%clk 0:01:52.9]} 20. Be3 {[%clk 0:01:57.3]} 20... Nc4 {[%clk
0:01:52.4]} 21. Bc1 {[%clk 0:01:57.7]} 21... Raf8 {[%clk 0:01:45.2]} 22. b3
{[%clk 0:01:57.7]} 22... Nb6 {[%clk 0:01:44.6]} 23. Be3 {[%clk 0:01:57.5]} 23...
Nfd7 {[%clk 0:01:37.2]} 24. Qg4 {[%clk 0:01:49.2]} 24... Rf5 {[%clk 0:01:28.9]}
25. Be4 {[%clk 0:01:43.4]} 25... Rf4 {[%clk 0:01:20.5]} 26. Bxf4 {[%clk
0:01:41.8]} 26... Rxf4 {[%clk 0:01:20.4]} 27. Qe6+ {[%clk 0:00:49.5]} 27... Qf7
{[%clk 0:00:59.5]} 28. Bg6 {[%clk 0:00:39.4]} 28... Qxe6 {[%clk 0:00:49.8]} 29.
dxe6 {[%clk 0:00:39.9]} 29... Nf6 {[%clk 0:00:38.8]} 30. e7 {[%clk 0:00:39.8]}
30... Rg4+ {[%clk 0:00:38.4]} 31. Kh2 {[%clk 0:00:37.8]} 31... Rxg6 {[%clk
0:00:38.9]} 32. Rg1 {[%clk 0:00:18]} 32... Kf7 {[%clk 0:00:38.9]} 33. Rxg6
{[%clk 0:00:17.8]} 33... Kxg6 {[%clk 0:00:39.2]} 34. a4 {[%clk 0:00:15.1]} 34...
bxa4 {[%clk 0:00:38.2]} 35. bxa4 {[%clk 0:00:14.8]} 35... Kf7 {[%clk 0:00:37.6]}
36. Rb1 {[%clk 0:00:14.9]} 36... Nbd5 {[%clk 0:00:36.3]} 37. Rb7 {[%clk
0:00:13.8]} 37... Nxe7 {[%clk 0:00:34.8]} 38. Ra7 {[%clk 0:00:14.7]} 38... Ke6
{[%clk 0:00:30.3]} 39. Rxa6 {[%clk 0:00:15.1]} 39... Ne4 {[%clk 0:00:29]} 40. c4
{[%clk 0:00:13.1]} 40... Nf5 {[%clk 0:00:21.2]} 41. Rc6 {[%clk 0:00:08.4]} 41...
Nd4 {[%clk 0:00:14.2]} 42. Rc7 {[%clk 0:00:07.5]} 42... g5 {[%clk 0:00:12.9]}
43. hxg5 {[%clk 0:00:07.6]} 43... hxg5 {[%clk 0:00:13.8]} 44. a5 {[%clk
0:00:06.2]} 44... Nc5 {[%clk 0:00:13.8]} 45. Kg2 {[%clk 0:00:04.5]} 45... Ndb3
{[%clk 0:00:11.9]} 46. Ra7 {[%clk 0:00:03.5]} 46... e4 {[%clk 0:00:09.9]} 47.
Kg3 {[%clk 0:00:03.3]} 47... Ke5 {[%clk 0:00:10.3]} 48. Rg7 {[%clk 0:00:02]}
48... Kd4 {[%clk 0:00:10.1]} 49. Rxg5 {[%clk 0:00:01.7]} 49... Kxc4 {[%clk
0:00:10.5]} 50. Rg7 {[%clk 0:00:01.7]} 50... Nxa5 {[%clk 0:00:10.3]} 51. Ra7
{[%clk 0:00:02.6]} 51... Nab3 {[%clk 0:00:10.4]} 52. Rc7 {[%clk 0:00:02.7]}
52... Kd5 {[%clk 0:00:11.3]} 53. Kf4 {[%clk 0:00:02.6]} 53... Nd4 {[%clk
0:00:10.9]} 54. Ke3 {[%clk 0:00:03.5]} 54... Nf5+ {[%clk 0:00:11]} 55. Ke2
{[%clk 0:00:04]} 55... Ne6 {[%clk 0:00:11.5]} 56. Ra7 {[%clk 0:00:03.9]} 56...
Ned4+ {[%clk 0:00:12]} 57. Kf1 {[%clk 0:00:04.7]} 57... Nc6 {[%clk 0:00:12]} 58.
Ra1 {[%clk 0:00:04.7]} 58... Ke6 {[%clk 0:00:12.9]} 59. Rd1 {[%clk 0:00:05.2]}
59... Ne5 {[%clk 0:00:13.8]} 60. Ke2 {[%clk 0:00:05.8]} 60... d5 {[%clk
0:00:14.5]} 61. Rh1 {[%clk 0:00:05.3]} 61... Nd3 {[%clk 0:00:14.6]} 62. Ra1
{[%clk 0:00:05.4]} 62... Ke5 {[%clk 0:00:15.5]} 63. Rf1 {[%clk 0:00:04]} 63...
Nf4+ {[%clk 0:00:16.4]} 64. Kd2 {[%clk 0:00:03.9]} 64... Nd4 {[%clk 0:00:17.3]}
65. Ke3 {[%clk 0:00:04.1]} 65... Nf5+ {[%clk 0:00:16.9]} 66. Kd2 {[%clk
0:00:04.6]} 66... d4 {[%clk 0:00:17.5]} 67. Ra1 {[%clk 0:00:04.9]} 67... Nd5
{[%clk 0:00:18.4]} 68. Ra5 {[%clk 0:00:04.9]} 68... e3+ {[%clk 0:00:18.3]} 69.
fxe3 {[%clk 0:00:05]} 69... Nxe3 {[%clk 0:00:19.2]} 70. Kd3 {[%clk 0:00:05.1]}
70... Nf5 {[%clk 0:00:19]} 71. Ra4 {[%clk 0:00:04.2]} 71... Nf4+ {[%clk
0:00:18.9]} 72. Kd2 {[%clk 0:00:04.7]} 72... Ke4 {[%clk 0:00:19.5]} 73. Rxd4+
{[%clk 0:00:05.1]} 73... Kxd4 {[%clk 0:00:18.1]} 1/2-1/2

[Event "Early-Titled-Tuesday-Blitz-March-26-2024"]
[Site "Chess.com"]
[Date "2024.03.26"]
[Round "3"]
[White "ACollins05"]
[Black "KarolKacprzak"]
[Result "1/2-1/2"]
[WhiteElo "2505"]
[BlackElo "2712"]
[TimeControl "180+1"]
[EndTime "8:29:41 PDT"]
[Termination "Game drawn - insufficient material"]

1. Nf3 {[%clk 0:03:00.5]} 1... Nf6 {[%clk 0:02:58.4]} 2. e3 {[%clk 0:03:00.5]}
2... d5 {[%clk 0:02:55.1]} 3. b3 {[%clk 0:03:00.8]} 3... g6 {[%clk 0:02:53.2]}
4. Bb2 {[%clk 0:03:01]} 4... Bg7 {[%clk 0:02:54.1]} 5. d4 {[%clk 0:02:59.5]}
5... O-O {[%clk 0:02:52.9]} 6. c4 {[%clk 0:03:00.2]} 6... c6 {[%clk 0:02:36.3]}
7. Nc3 {[%clk 0:03:00]} 7... Bf5 {[%clk 0:02:36.8]} 8. Bd3 {[%clk 0:02:59.7]}
8... Ne4 {[%clk 0:02:32.6]} 9. O-O {[%clk 0:02:53.6]} 9... Nxc3 {[%clk
0:02:24.1]} 10. Bxc3 {[%clk 0:02:54.5]} 10... Bxd3 {[%clk 0:02:24.7]} 11. Qxd3
{[%clk 0:02:55.4]} 11... Nd7 {[%clk 0:02:03.6]} 12. e4 {[%clk 0:02:55.4]} 12...
dxc4 {[%clk 0:01:55.4]} 13. Qxc4 {[%clk 0:02:55.6]} 13... Nf6 {[%clk 0:01:54.7]}
14. Rfe1 {[%clk 0:02:53.9]} 14... Qb6 {[%clk 0:01:49.4]} 15. Rad1 {[%clk
0:02:36.5]} 15... Rfd8 {[%clk 0:01:48.8]} 16. Ne5 {[%clk 0:02:34.5]} 16... e6
{[%clk 0:01:46.5]} 17. Qa4 {[%clk 0:02:31.8]} 17... Re8 {[%clk 0:01:17.8]} 18.
Nc4 {[%clk 0:01:50.6]} 18... Qc7 {[%clk 0:01:12.1]} 19. Qa5 {[%clk 0:01:50.7]}
19... b6 {[%clk 0:01:07.9]} 20. Qg5 {[%clk 0:01:50.1]} 20... h6 {[%clk
0:01:07.5]} 21. Qe3 {[%clk 0:01:46.2]} 21... Rad8 {[%clk 0:01:07.7]} 22. f3
{[%clk 0:01:43.9]} 22... Nd7 {[%clk 0:00:55.7]} 23. Rd2 {[%clk 0:01:34.3]} 23...
Kh7 {[%clk 0:00:55.3]} 24. Red1 {[%clk 0:01:32.2]} 24... h5 {[%clk 0:00:55.9]}
25. Rd3 {[%clk 0:01:25.5]} 25... Bh6 {[%clk 0:00:56]} 26. Qf2 {[%clk 0:01:23.1]}
26... Bg7 {[%clk 0:00:49.7]} 27. Bb4 {[%clk 0:01:21.4]} 27... c5 {[%clk
0:00:44.1]} 28. dxc5 {[%clk 0:01:21]} 28... Nxc5 {[%clk 0:00:45]} 29. Rxd8
{[%clk 0:01:07.2]} 29... Rxd8 {[%clk 0:00:45.9]} 30. Rxd8 {[%clk 0:01:06.7]}
30... Qxd8 {[%clk 0:00:46.8]} 31. Qd2 {[%clk 0:01:05.2]} 31... Bd4+ {[%clk
0:00:29.9]} 32. Kf1 {[%clk 0:01:03]} 32... Qf6 {[%clk 0:00:28.5]} 33. Qe2 {[%clk
0:00:42.4]} 33... Qf4 {[%clk 0:00:24.4]} 34. g3 {[%clk 0:00:35.8]} 34... Qc1+
{[%clk 0:00:24.2]} 35. Qe1 {[%clk 0:00:33]} 35... Qc2 {[%clk 0:00:22.6]} 36. Qe2
{[%clk 0:00:30.3]} 36... Qb1+ {[%clk 0:00:22.3]} 37. Kg2 {[%clk 0:00:24.8]}
37... Nd3 {[%clk 0:00:20.6]} 38. Bd6 {[%clk 0:00:15.2]} 38... Nc1 {[%clk
0:00:18.1]} 39. Qd2 {[%clk 0:00:13]} 39... Qxa2 {[%clk 0:00:17.1]} 40. Qxa2
{[%clk 0:00:12.6]} 40... Nxa2 {[%clk 0:00:18]} 41. Kf1 {[%clk 0:00:12.1]} 41...
Nc1 {[%clk 0:00:17.1]} 42. b4 {[%clk 0:00:11.7]} 42... b5 {[%clk 0:00:15.2]} 43.
Na5 {[%clk 0:00:09.2]} 43... Nd3 {[%clk 0:00:11.2]} 44. Nc6 {[%clk 0:00:09]}
44... Bb6 {[%clk 0:00:10.6]} 45. Bb8 {[%clk 0:00:08.8]} 45... a6 {[%clk
0:00:10.4]} 46. Bd6 {[%clk 0:00:09.1]} 46... Kg7 {[%clk 0:00:09]} 47. Nb8 {[%clk
0:00:09.4]} 47... a5 {[%clk 0:00:09.2]} 48. bxa5 {[%clk 0:00:09]} 48... Bxa5
{[%clk 0:00:10.1]} 49. Nc6 {[%clk 0:00:09.5]} 49... Bb6 {[%clk 0:00:10.2]} 50.
Ke2 {[%clk 0:00:06.7]} 50... Nc5 {[%clk 0:00:09.4]} 51. Nd4 {[%clk 0:00:04.3]}
51... Nxe4 {[%clk 0:00:05.6]} 52. Nxb5 {[%clk 0:00:03.3]} 52... Nxd6 {[%clk
0:00:04.8]} 53. Nxd6 {[%clk 0:00:04.1]} 53... Bc7 {[%clk 0:00:04.5]} 54. Nc4
{[%clk 0:00:04.6]} 54... Be5 {[%clk 0:00:05.2]} 55. f4 {[%clk 0:00:04.6]} 55...
Bf6 {[%clk 0:00:04.9]} 56. Kf3 {[%clk 0:00:05.1]} 56... Bc3 {[%clk 0:00:05]} 57.
Ne3 {[%clk 0:00:05.2]} 57... Bd4 {[%clk 0:00:03.9]} 58. Nc2 {[%clk 0:00:05.7]}
58... Bb2 {[%clk 0:00:03.9]} 59. h3 {[%clk 0:00:06.3]} 59... f5 {[%clk
0:00:03.7]} 60. Ne3 {[%clk 0:00:06.7]} 60... Kf6 {[%clk 0:00:04.1]} 61. Nc4
{[%clk 0:00:07.3]} 61... e5 {[%clk 0:00:04.2]} 62. Nxb2 {[%clk 0:00:07.3]} 62...
Ke6 {[%clk 0:00:01.8]} 63. fxe5 {[%clk 0:00:06.3]} 63... Kxe5 {[%clk 0:00:02.1]}
64. h4 {[%clk 0:00:07.2]} 64... Kf6 {[%clk 0:00:02]} 65. Nd3 {[%clk 0:00:07.7]}
65... g5 {[%clk 0:00:02.9]} 66. hxg5+ {[%clk 0:00:07.8]} 66... Kxg5 {[%clk
0:00:03.8]} 67. Nf4 {[%clk 0:00:06.3]} 67... h4 {[%clk 0:00:04.7]} 68. Nh3+
{[%clk 0:00:05.6]} 68... Kh5 {[%clk 0:00:04.8]} 69. Nf4+ {[%clk 0:00:05.6]}
69... Kg5 {[%clk 0:00:05.4]} 70. Ne6+ {[%clk 0:00:06.1]} 70... Kh5 {[%clk
0:00:03.2]} 71. Ng7+ {[%clk 0:00:06.1]} 71... Kg5 {[%clk 0:00:03.5]} 72. Nxf5
{[%clk 0:00:04.6]} 72... hxg3 {[%clk 0:00:02.3]} 73. Nxg3 {[%clk 0:00:05.5]}
1/2-1/2

[Event "Early-Titled-Tuesday-Blitz-March-26-2024"]
[Site "Chess.com"]
[Date "2024.03.26"]
[Round "3"]
[White "HajiyevKanan"]
[Black "MikeSailer"]
[Result "0-1"]
[WhiteElo "2538"]
[BlackElo "2093"]
[TimeControl "180+1"]
[EndTime "8:29:42 PDT"]
[Termination "MikeSailer won by resignation"]

1. d4 {[%clk 0:03:00.9]} 1... d5 {[%clk 0:03:00.3]} 2. Nf3 {[%clk 0:03:01.4]}
2... Bf5 {[%clk 0:03:00]} 3. c4 {[%clk 0:03:02.3]} 3... e6 {[%clk 0:03:00.6]} 4.
cxd5 {[%clk 0:03:02.3]} 4... exd5 {[%clk 0:03:00.9]} 5. Nc3 {[%clk 0:03:02.5]}
5... Bb4 {[%clk 0:02:59.3]} 6. Qb3 {[%clk 0:02:54.8]} 6... Nc6 {[%clk
0:02:58.9]} 7. Bg5 {[%clk 0:02:53.7]} 7... f6 {[%clk 0:02:59.2]} 8. Bf4 {[%clk
0:02:53.8]} 8... Nge7 {[%clk 0:02:58.5]} 9. e3 {[%clk 0:02:53.9]} 9... O-O
{[%clk 0:02:58.3]} 10. Be2 {[%clk 0:02:52.4]} 10... Kh8 {[%clk 0:02:42.7]} 11.
O-O {[%clk 0:02:51.5]} 11... a5 {[%clk 0:02:26.3]} 12. a3 {[%clk 0:02:46.3]}
12... Bd6 {[%clk 0:02:14.8]} 13. Bg3 {[%clk 0:02:43.5]} 13... Bxg3 {[%clk
0:02:14]} 14. hxg3 {[%clk 0:02:44.4]} 14... Rb8 {[%clk 0:02:12.1]} 15. Rac1
{[%clk 0:02:41.8]} 15... Bg6 {[%clk 0:01:46.6]} 16. Nh4 {[%clk 0:02:33.4]} 16...
Bf7 {[%clk 0:01:46.9]} 17. Bf3 {[%clk 0:02:28.9]} 17... Na7 {[%clk 0:01:34.4]}
18. Be2 {[%clk 0:02:23]} 18... c6 {[%clk 0:01:33.5]} 19. g4 {[%clk 0:02:20]}
19... Nac8 {[%clk 0:01:30.8]} 20. g3 {[%clk 0:02:12.8]} 20... Nd6 {[%clk
0:01:30.4]} 21. Kg2 {[%clk 0:02:13.5]} 21... Be6 {[%clk 0:01:18.9]} 22. Rh1
{[%clk 0:02:12.5]} 22... Kg8 {[%clk 0:01:15.6]} 23. Na4 {[%clk 0:02:09.5]} 23...
Qc8 {[%clk 0:01:05.9]} 24. Nb6 {[%clk 0:02:02.1]} 24... Qc7 {[%clk 0:01:01.5]}
25. Rc5 {[%clk 0:01:44.5]} 25... Ndc8 {[%clk 0:00:52.9]} 26. Nxc8 {[%clk
0:01:35.4]} 26... Rfxc8 {[%clk 0:00:44.2]} 27. Qc2 {[%clk 0:01:35.5]} 27... Bf7
{[%clk 0:00:35.1]} 28. Bd3 {[%clk 0:01:30.3]} 28... h6 {[%clk 0:00:29.4]} 29.
Bh7+ {[%clk 0:01:26.3]} 29... Kf8 {[%clk 0:00:28.4]} 30. Bd3 {[%clk 0:01:22.8]}
30... b6 {[%clk 0:00:24.3]} 31. Rc3 {[%clk 0:01:18.4]} 31... c5 {[%clk
0:00:24.5]} 32. Ba6 {[%clk 0:01:13.8]} 32... Rd8 {[%clk 0:00:11.2]} 33. dxc5
{[%clk 0:01:13.2]} 33... bxc5 {[%clk 0:00:11.2]} 34. Rxc5 {[%clk 0:01:11.2]}
34... Qa7 {[%clk 0:00:08.8]} 35. Be2 {[%clk 0:01:05.6]} 35... d4 {[%clk
0:00:09.2]} 36. Rc7 {[%clk 0:00:51.7]} 36... Qb6 {[%clk 0:00:07.3]} 37. exd4
{[%clk 0:00:44.7]} 37... Qxd4 {[%clk 0:00:07.3]} 38. Rd1 {[%clk 0:00:35.1]}
38... Bd5+ {[%clk 0:00:06.4]} 39. Kg1 {[%clk 0:00:20.2]} 39... Qxb2 {[%clk
0:00:06.6]} 40. Qxb2 {[%clk 0:00:12.3]} 40... Rxb2 {[%clk 0:00:06.6]} 41. Bf3
{[%clk 0:00:10.3]} 41... Rbb8 {[%clk 0:00:04.2]} 42. Rxe7 {[%clk 0:00:03.8]}
42... Bxf3 {[%clk 0:00:03.2]} 43. Rxd8+ {[%clk 0:00:03.6]} 43... Rxd8 {[%clk
0:00:03.5]} 44. Ng6+ {[%clk 0:00:03.5]} 44... Kg8 {[%clk 0:00:02.8]} 45. Re1
{[%clk 0:00:04.4]} 45... Kh7 {[%clk 0:00:02.7]} 46. Nh4 {[%clk 0:00:04.2]} 46...
Bxg4 {[%clk 0:00:03.1]} 47. Ng2 {[%clk 0:00:04.6]} 47... Bf3 {[%clk 0:00:03.5]}
48. Ne3 {[%clk 0:00:05.4]} 48... g5 {[%clk 0:00:03.9]} 49. g4 {[%clk 0:00:05.8]}
49... Kg6 {[%clk 0:00:04.3]} 50. Kh2 {[%clk 0:00:06.3]} 50... h5 {[%clk
0:00:04.4]} 51. gxh5+ {[%clk 0:00:06.8]} 51... Bxh5 {[%clk 0:00:04.8]} 52. Kg3
{[%clk 0:00:07.7]} 52... f5 {[%clk 0:00:05.3]} 53. f3 {[%clk 0:00:08.2]} 53...
f4+ {[%clk 0:00:05.6]} 54. Kf2 {[%clk 0:00:08.9]} 54... fxe3+ {[%clk 0:00:06.1]}
55. Rxe3 {[%clk 0:00:09.6]} 55... Rd2+ {[%clk 0:00:06.2]} 56. Kg3 {[%clk
0:00:10.2]} 56... Kf5 {[%clk 0:00:06.1]} 57. Rc3 {[%clk 0:00:10.3]} 57... Bf7
{[%clk 0:00:06.2]} 58. Rc5+ {[%clk 0:00:10.5]} 58... Bd5 {[%clk 0:00:06.8]} 59.
Rb5 {[%clk 0:00:10.2]} 59... Rd3 {[%clk 0:00:07.2]} 60. a4 {[%clk 0:00:08.3]}
60... Rxf3+ {[%clk 0:00:07.4]} 61. Kh2 {[%clk 0:00:09.2]} 61... Rd3 {[%clk
0:00:07.2]} 62. Rxa5 {[%clk 0:00:09.7]} 62... Kf4 {[%clk 0:00:07.2]} 63. Kg1
{[%clk 0:00:10.3]} 63... g4 {[%clk 0:00:07.7]} 64. Rc5 {[%clk 0:00:10.3]} 64...
Kg3 {[%clk 0:00:08.1]} 65. Rc1 {[%clk 0:00:09.6]} 65... Bf3 {[%clk 0:00:08.2]}
66. a5 {[%clk 0:00:09.5]} 66... Ra3 {[%clk 0:00:08.7]} 67. Rf1 {[%clk
0:00:06.5]} 67... Rxa5 {[%clk 0:00:08.9]} 68. Rc1 {[%clk 0:00:06.9]} 68... Ra2
{[%clk 0:00:09.1]} 69. Kf1 {[%clk 0:00:06.8]} 69... Rh2 {[%clk 0:00:08.7]} 70.
Ke1 {[%clk 0:00:06.6]} 70... Rh1+ {[%clk 0:00:09.3]} 71. Kd2 {[%clk 0:00:07.4]}
71... Rxc1 {[%clk 0:00:10]} 72. Kxc1 {[%clk 0:00:07.9]} 72... Kf2 {[%clk
0:00:10.9]} 0-1

[Event "Early-Titled-Tuesday-Blitz-March-26-2024"]
[Site "Chess.com"]
[Date "2024.03.26"]
[Round "3"]
[White "rhwr"]
[Black "WilsonPalencia21"]
[Result "1/2-1/2"]
[WhiteElo "2306"]
[BlackElo "2584"]
[TimeControl "180+1"]
[EndTime "8:29:45 PDT"]
[Termination "Game drawn - insufficient material"]

1. e4 {[%clk 0:02:59.9]} 1... c5 {[%clk 0:02:59.8]} 2. Nf3 {[%clk 0:02:59.8]}
2... d6 {[%clk 0:02:58.6]} 3. d4 {[%clk 0:02:59.6]} 3... cxd4 {[%clk 0:02:58.5]}
4. Nxd4 {[%clk 0:03:00.2]} 4... Nf6 {[%clk 0:02:56.6]} 5. Nc3 {[%clk 0:03:00.1]}
5... g6 {[%clk 0:02:56.1]} 6. Be2 {[%clk 0:02:59.9]} 6... Bg7 {[%clk 0:02:55.4]}
7. O-O {[%clk 0:03:00]} 7... O-O {[%clk 0:02:55.8]} 8. Be3 {[%clk 0:03:00.5]}
8... Nc6 {[%clk 0:02:55.2]} 9. Nb3 {[%clk 0:02:54.7]} 9... Be6 {[%clk
0:02:54.5]} 10. h3 {[%clk 0:02:51.9]} 10... d5 {[%clk 0:02:53.7]} 11. exd5
{[%clk 0:02:42.9]} 11... Nxd5 {[%clk 0:02:53.1]} 12. Nxd5 {[%clk 0:02:43.2]}
12... Qxd5 {[%clk 0:02:53.8]} 13. c3 {[%clk 0:02:43.3]} 13... Rfd8 {[%clk
0:02:52.7]} 14. Qxd5 {[%clk 0:02:38]} 14... Bxd5 {[%clk 0:02:46.7]} 15. Rad1
{[%clk 0:02:38.4]} 15... e5 {[%clk 0:02:40.8]} 16. Rd2 {[%clk 0:02:20]} 16... b6
{[%clk 0:02:32.1]} 17. Rfd1 {[%clk 0:02:19]} 17... Bxb3 {[%clk 0:02:05.8]} 18.
axb3 {[%clk 0:02:18]} 18... Rxd2 {[%clk 0:02:05.6]} 19. Rxd2 {[%clk 0:02:17.4]}
19... Rd8 {[%clk 0:02:06.5]} 20. Bb5 {[%clk 0:01:56.4]} 20... Rxd2 {[%clk
0:02:05.3]} 21. Bxd2 {[%clk 0:01:56.1]} 21... Nd8 {[%clk 0:02:05.6]} 22. c4
{[%clk 0:01:41.6]} 22... Bf8 {[%clk 0:02:04.8]} 23. Bc3 {[%clk 0:01:40.1]} 23...
f6 {[%clk 0:02:02.2]} 24. f4 {[%clk 0:01:37.9]} 24... Bd6 {[%clk 0:01:44.6]} 25.
fxe5 {[%clk 0:01:34.5]} 25... Bxe5 {[%clk 0:01:44.7]} 26. b4 {[%clk 0:01:29.8]}
26... Kf7 {[%clk 0:01:31.4]} 27. Kf2 {[%clk 0:01:30.2]} 27... Ke6 {[%clk
0:01:31.1]} 28. Ke3 {[%clk 0:01:29.6]} 28... Kd6 {[%clk 0:01:27.3]} 29. Ba4
{[%clk 0:01:02.1]} 29... Ne6 {[%clk 0:01:21.6]} 30. Bc2 {[%clk 0:01:00.9]} 30...
f5 {[%clk 0:01:14.9]} 31. Bd1 {[%clk 0:00:55.2]} 31... Bxc3 {[%clk 0:01:06.5]}
32. bxc3 {[%clk 0:00:55.2]} 32... Ke5 {[%clk 0:01:06.5]} 33. Bf3 {[%clk
0:00:52.5]} 33... g5 {[%clk 0:01:01.8]} 34. Bb7 {[%clk 0:00:44.9]} 34... a5
{[%clk 0:01:00.7]} 35. Bc6 {[%clk 0:00:17.8]} 35... Kd6 {[%clk 0:00:43.4]} 36.
Ba4 {[%clk 0:00:15.3]} 36... h5 {[%clk 0:00:37.8]} 37. g3 {[%clk 0:00:14.3]}
37... Ke5 {[%clk 0:00:34.4]} 38. Bb3 {[%clk 0:00:11.9]} 38... axb4 {[%clk
0:00:29.3]} 39. cxb4 {[%clk 0:00:11.8]} 39... Nd4 {[%clk 0:00:29.8]} 40. Ba4
{[%clk 0:00:11.6]} 40... f4+ {[%clk 0:00:29.7]} 41. gxf4+ {[%clk 0:00:11.6]}
41... gxf4+ {[%clk 0:00:30.3]} 42. Kf2 {[%clk 0:00:12.5]} 42... h4 {[%clk
0:00:23.3]} 43. Bd1 {[%clk 0:00:11.9]} 43... Nc6 {[%clk 0:00:21.4]} 44. c5
{[%clk 0:00:09.3]} 44... bxc5 {[%clk 0:00:20.2]} 45. bxc5 {[%clk 0:00:09.5]}
45... Nd4 {[%clk 0:00:20.4]} 46. Bf3 {[%clk 0:00:08.8]} 46... Ke6 {[%clk
0:00:13.4]} 47. Be4 {[%clk 0:00:07.2]} 47... Ke5 {[%clk 0:00:12.7]} 48. Bf3
{[%clk 0:00:07.3]} 48... Nb3 {[%clk 0:00:11.9]} 49. c6 {[%clk 0:00:07.2]} 49...
Kd6 {[%clk 0:00:12.2]} 50. Be4 {[%clk 0:00:06.6]} 50... Nd4 {[%clk 0:00:12.2]}
51. Bf3 {[%clk 0:00:05.9]} 51... Ne6 {[%clk 0:00:07.1]} 52. Be4 {[%clk
0:00:05.1]} 52... Ng5 {[%clk 0:00:07.4]} 53. Bg2 {[%clk 0:00:04.9]} 53... Kc7
{[%clk 0:00:06.5]} 54. Ke2 {[%clk 0:00:04.5]} 54... f3+ {[%clk 0:00:06.5]} 55.
Bxf3 {[%clk 0:00:04.6]} 55... Nxh3 {[%clk 0:00:06.6]} 56. Bg4 {[%clk 0:00:03.2]}
56... Nf4+ {[%clk 0:00:05.7]} 57. Kf3 {[%clk 0:00:03.4]} 57... Ng6 {[%clk
0:00:05.8]} 58. Bf5 {[%clk 0:00:03.2]} 58... Ne5+ {[%clk 0:00:05.5]} 59. Kf4
{[%clk 0:00:03.4]} 59... Nxc6 {[%clk 0:00:05.5]} 60. Kg4 {[%clk 0:00:03.7]}
60... Kd6 {[%clk 0:00:04.3]} 61. Kxh4 {[%clk 0:00:03.8]} 1/2-1/2